Cogmind - Beta 15 @@@ ROGUE MODE // 2025.07.07 @ 02:09:47 Player: LameThyst Result: Destroyed by as-87657 with Assembled Rifle Performance ------------- Evolutions (0) 0 Regions Visited (2) 400 Robots Destroyed (6) 30 Value Destroyed (81) 81 Prototype IDs (0) 0 Alien Tech Used (0) 0 Bonus (0) 0 TOTAL SCORE: 511 Bonus ------- None Cogmind --------- Core Integrity 0/250 Matter 280/300 Energy 90/250 System Corruption 3% Temperature Cool (0) Movement Core (200) Ox3 Location -10/Mines Parts ------- > --- POWER (1) -------- Ion Engine > --- PROPULSION (2) --- (None) > --- UTILITY (2) ------ Small Storage Unit > --- WEAPON (2) ------- (None) > --- INVENTORY (8) ---- Aluminum Leg Aluminum Leg Compact Wheel Improved Heat Sink High-capacity Matter Pod (81) Structural Scanner Medium Laser Peak State ------------ > --- POWER ------------ Ion Engine > --- PROPULSION ------- Aluminum Leg Aluminum Leg > --- UTILITY ---------- Small Storage Unit Seismic Detector > --- WEAPON ----------- Particle Gun Light Assault Rifle > --- INVENTORY -------- Ion Engine Aluminum Leg Compact Wheel Compact Wheel Improved Heat Sink High-capacity Matter Pod Structural Scanner Medium Laser [Rating: 9] Favorites ----------- Power Ion Engine Engine Ion Engine Propulsion Aluminum Leg Leg Aluminum Leg Wheel Compact Wheel Utility Small Storage Unit Device Seismic Detector Storage Small Storage Unit Weapon Light Assault Rifle Energy Gun Medium Laser Ballistic Gun Light Assault Rifle Build | -11 -10 -10 ------- Run | Yrd Mat Min Slots Evolved . | . . . Power . | . . . Propulsion . | . . . Utility . | . . . Weapon . | . . . Parts Attached 13 | 9 . 4 Power 2 | 1 . 1 Engine 2 | 1 . 1 Core . | . . . Reactor . | . . . Propulsion 6 | 4 . 2 Treads . | . . . Leg 4 | 2 . 2 Wheel 2 | 2 . . Hover . | . . . Flight . | . . . Utility 2 | 2 . . Device 1 | 1 . . Storage 1 | 1 . . Processor . | . . . Hackware . | . . . Protection . | . . . Artifact . | . . . Weapon 3 | 2 . 1 Energy Gun 2 | 1 . 1 Energy Cannon . | . . . Ballistic Gun 1 | 1 . . Ballistic Cannon . | . . . Launcher . | . . . Special Weapon . | . . . Impact Weapon . | . . . Slashing Weapon . | . . . Piercing Weapon . | . . . Special Melee Weapon . | . . . Unidentified Prototypes . | . . . Parts Lost 6 | . . 6 Power 1 | . . 1 Propulsion 2 | . . 2 Utility 1 | . . 1 Weapon 2 | . . 2 Highest Loss Streak 6 | . . 6 To Critical Strikes . | . . . Average Backups 6 | 4 6 7 Power . | . 1 1 Propulsion 3 | 3 4 3 Utility 1 | . . 2 Weapon . | . 1 1 Tool/Special . | . . . Unused Backups 9 | 1 . 8 Power 1 | . . 1 Propulsion 3 | 1 . 2 Utility 4 | . . 4 Weapon 1 | . . 1 Tool/Special . | . . . Average Slot Usage (%) 94 | . 100 94 Engine 12 | . 14 12 Leg 25 | . 28 25 Wheel 1 | . . 1 Device 12 | . 14 12 Storage 14 | . 14 14 Energy Gun 12 | . 14 12 Ballistic Gun 13 | . 14 13 Peak Build Rating 9 | 7 7 9 Average Rating 6 | 5 7 7 On Entrance 4 | . 7 7 Naked Turns . | . . . Heaviest Build 15 | 14 14 15 Greatest Support 32 | 32 20 20 Greatest Overweight (x) 1 | . . 1 Average Overweight (x) . | . . . Largest Inventory Capacity 8 | 8 8 8 Average Capacity 7 | 7 8 8 Most Carried 8 | 7 6 8 Average Carried 6 | 5 6 7 Final Capacity 8 | 8 8 8 Final Carried 7 | 6 6 7 Class Distribution -------------------- 69% | Mutant 30% | Scavenger-Mutant Dominant Class ---------------- Mutant | -10/Materials Scavenger-Mutant | -10/Mines Resources | -11 -10 -10 ----------- Run | Yrd Mat Min Matter Collected 413 | 303 . 110 Remotely . | . . . Salvage Created 214 | 153 . 61 Parts 12 | 9 . 3 Haulers Intercepted . | . . . Recyclers Shooed . | . . . Parts Field Recycled . | . . . Retrieved Matter . | . . . Parts Self-Destructed . | . . . Prevented . | . . . Kills | -11 -10 -10 ------- Run | Yrd Mat Min Combat Hostiles Destroyed 2 | . . 2 Guns 2 | . . 2 Classes Destroyed 4 | 2 . 2 Tunneler 4 | 4 . . Recycler 1 | 1 . . Grunt 1 | . . 1 Assembled 1 | . . 1 Best Kill Streak 3 | 3 . 1 Combat Bots Only 1 | . . 1 Max Kills in Single Turn 1 | 1 . 1 Gunslinging . | . . . Exploded . | . . . Melee . | . . . Uniques/NPCs Destroyed . | . . . Combat | -11 -10 -10 -------- Run | Yrd Mat Min Hostile Shots Fired 69 | . 3 66 Missed 23 | . 1 22 Hits 46 | . 2 44 Melee 6 | . . 6 Projectile 40 | . 2 38 Part Disruptions 1 | . . 1 Damage Taken 798 | . 109 689 Core 260 | . 18 242 Absorbed by Shields . | . . . Core Remaining (%) 100 | 100 . . Volleys Fired 19 | 13 . 6 Largest 2 | 2 . 2 Hottest 85 | 70 . 85 Shots Fired 38 | 26 . 12 Gun 38 | 26 . 12 Cannon . | . . . Launcher . | . . . Special . | . . . Kinetic 19 | 13 . 6 Thermal 19 | 13 . 6 Explosive . | . . . Electromagnetic . | . . . Robot Hit Streak 7 | 5 . 7 Robot Miss Streak 4 | 2 . 4 Penetration Max . | . . . Secondary Targets 2 | . . 2 Max Gunslinging Chain 1 | . . 1 Shots Hit Robots 21 | 16 . 5 Core Hits 10 | 7 . 3 Critical Kills . | . . . Critical Parts Destroyed . | . . . Critical Strikes 3 | 2 . 1 Burn 3 | 2 . 1 Melee Attacks . | . . . Impact . | . . . Slashing . | . . . Piercing . | . . . Sneak Attacks . | . . . Combat Hostiles . | . . . Follow-up Attacks . | . . . Damage Inflicted 238 | 173 . 65 Guns 234 | 173 . 61 Cannons . | . . . Explosions . | . . . Melee . | . . . Ramming 4 | . . 4 Kinetic 68 | 49 . 19 Thermal 166 | 124 . 42 Explosive . | . . . Electromagnetic . | . . . Impact . | . . . Slashing . | . . . Piercing . | . . . Highest Corruption 3 | . 3 3 Average Corruption 3 | . 3 3 Corruption Purged . | . . . Corruption Blocked . | . . . Effects 5 | . 1 4 Message Errors 1 | . 1 . Matter Fused 2 | . . 2 Data Loss (minor) 2 | . . 2 Overload Shots . | . . . Overflow Damage . | . . . Projectiles . | . . . Explosions . | . . . Melee . | . . . Knockbacks . | . . . Impact . | . . . Kinetic . | . . . Secondary . | . . . Self-Inflicted Damage 2 | . . 2 Shots . | . . . Rammed 1 | . . 1 Targets Rammed 1 | . . 1 Kicked . | . . . Crushed . | . . . Highest Temperature 176 | 72 . 176 Average Temperature 43 | 26 . 71 Received Heat Transfer 64 | . . 64 Siege Activations . | . . . Martial Activations . | . . . Shielding Activations . | . . . Robots Disrupted . | . . . Combat Hostiles . | . . . Robots Corrupted . | . . . Combat Hostiles . | . . . Parts Fried . | . . . Impact Corruptions . | . . . Robots Melted . | . . . Combat Hostiles . | . . . Parts Melted . | . . . Heat Transferred 703 | 518 . 185 Parts Sabotaged . | . . . Parts Stolen . | . . . Parts Stripped . | . . . Power Chain Reactions . | . . . Alert | -11 -10 -10 ------- Run | Yrd Mat Min Maximum Alert Level . | . . . Low Security (%) 100 | 100 100 100 Level 1 . | . . . Level 2 . | . . . Level 3 . | . . . Level 4 . | . . . Level 5 . | . . . High Security . | . . . Max Security . | . . . Peak Influence 30 | 10 . 30 Initial . | . . . Average 2 | 1 . 4 Influence Increases 55 | 25 . 30 Destroy 0b10 Robot/C 20 | . . 20 Destroy 0b10 Robot/NC 25 | 25 . . Destroy Leader 10 | . . 10 Influence Decreases 55 | 25 . 30 Time Decay 55 | 25 . 30 Squads Dispatched 1 | . 1 . Investigation 1 | . 1 . Extermination . | . . . Reinforcement . | . . . Assault . | . . . Garrison . | . . . Intercept . | . . . Searches Triggered . | . . . Construction Impeded . | . . . Haulers Reinforced . | . . . Active Scanning Responses . | . . . Cargo Convoy Interrupts . | . . . Stealth | -11 -10 -10 --------- Run | Yrd Mat Min Distress Signals . | . . . Communications Jammed . | . . . Distress Signals . | . . . Times Spotted 24 | . 3 21 Peak Tracking Total 14 | . 3 14 Tactical Retreats 2 | . . 2 Traps | -11 -10 -10 ------- Run | Yrd Mat Min Traps Triggered 1 | . 1 . Indirectly . | . . . Trap Hack Attempts . | . . . Triggered . | . . . Disarmed . | . . . Reprogrammed . | . . . Reused . | . . . Traps Extracted . | . . . Installed . | . . . Triggered . | . . . Machines | -11 -10 -10 ---------- Run | Yrd Mat Min Machines Disabled . | . . . Max in Single Turn . | . . . Machines Repaired . | . . . Machines Dismantled . | . . . Machines Sabotaged . | . . . Overloaded Fab Kills . | . . . Hacking | -11 -10 -10 --------- Run | Yrd Mat Min Machines Accessed 2 | . 2 . Terminals 2 | . 2 . Fabricators . | . . . Repair Stations . | . . . Recycling Units . | . . . Scanalyzers . | . . . Garrison Access . | . . . Total Hacks 4 | . 4 . Successful . | . . . Failed 4 | . 4 . Catastrophic . | . . . Database Lockouts . | . . . Manual 4 | . 4 . Terminals 4 | . 4 . Fabricators . | . . . Repair Stations . | . . . Recycling Units . | . . . Scanalyzers . | . . . Garrison Access . | . . . Terminal Hacks . | . . . Fabricator Hacks . | . . . Repair Station Hacks . | . . . Recycling Unit Hacks . | . . . Scanalyzer . | . . . Garrison Access Hacks . | . . . Unauthorized Hacks . | . . . Terminals . | . . . Fabricators . | . . . Repair Stations . | . . . Recycling Units . | . . . Scanalyzers . | . . . Garrison Access . | . . . Data Cores Recovered . | . . . Used . | . . . Hacking Detections 1 | . 1 . Full Trace Events 1 | . 1 . Feedback Events . | . . . Feedback Blocked . | . . . Robot Schematics Acquired . | . . . Robots Built . | . . . Authchips . | . . . Time . | . . . Total Robot Build Rating . | . . . Part Schematics Acquired . | . . . Parts Built . | . . . Authchips . | . . . Time . | . . . Total Part Build Rating . | . . . Parts Repaired . | . . . Time . | . . . Parts Recycled . | . . . Recycled Matter . | . . . Retrieved Matter . | . . . Retrieved Components . | . . . Parts Scanalyzed . | . . . Part Schematics Acquired . | . . . Parts Damaged . | . . . Bothacking | -11 -10 -10 ------------ Run | Yrd Mat Min Used RIF Installer . | . . . Robots Hacked . | . . . Non-combat . | . . . Combat . | . . . Robot Hacks Applied . | . . . Relay Couplers Released . | . . . Fabnet Peak Effective % . | . . . Robots Rewired . | . . . Allies Hacked . | . . . Hacks Repelled . | . . . Allies | -11 -10 -10 -------- Run | Yrd Mat Min Total Allies 1 | . . 1 Largest Group 1 | . . 1 Highest-Rated Group 31 | . . 31 Highest-Rated Ally 31 | . . 31 Total Orders . | . . . Ally Attacks 5 | . . 5 Total Damage 63 | . . 63 Kills 1 | . . 1 Allies Corrupted . | . . . Allies Melted . | . . . Intel | -11 -10 -10 ------- Run | Yrd Mat Min Active Infowar (turns) 265 | 18 28 219 Seismic 265 | 18 28 219 Robot Analysis Total . | . . . Derelict Logs Recovered . | . . . Drone Launches . | . . . Drone Recoveries . | . . . Exploration | -11 -10 -10 ------------- Run | Yrd Mat Min Turns Passed 447 | 180 28 239 Spaces Moved 258 | 122 24 112 Core 42 | 27 . 15 Treads . | . . . Legs 172 | 69 24 79 Wheels 44 | 26 . 18 Hover . | . . . Flight . | . . . Fastest Speed 50 | 50 120 100 Average Speed 108 | 100 120 114 Slowest Speed 190 | 120 120 190 Overloaded Moves . | . . . Propulsion Burnouts . | . . . Robots Hopped . | . . . Potential Cave-ins . | . . . Cave-ins Triggered . | . . . Exploration Rate (%) 15 | 6 13 28 Regions Visited 2 Branch Regions 1 Pre-discovered Areas 1 | . . 1 Known Exits Taken . | . . . Unknown Exits Taken 2 | 1 1 . Scrap Searched . | . . . Spaces Dug . | . . . Terrain Destroyed . | . . . Melee . | . . . Projectile . | . . . AOE . | . . . Terrain Rammed . | . . . Walls Destroyed . | . . . Machines Disabled . | . . . Actions | -11 -10 -10 --------- Run | Yrd Mat Min Total 389 | 153 23 213 Wait 78 | . . 78 Move 256 | 121 23 112 Hop . | . . . Pick Up 13 | 9 . 4 Fast Attach 5 | 5 . . Attach 3 | 2 . 1 Detach . | . . . Swap 7 | 2 . 5 Drop 7 | 1 . 6 Fire 19 | 13 . 6 Melee . | . . . Ram 1 | . . 1 Kick . | . . . Crush . | . . . Escape Stasis . | . . . Rewire . | . . . Trap . | . . . Miscellaneous . | . . . Route ------- -11/Scrapyard -10/Materials -10/Mines History --------- Turn | Location | Event 3 | -11/Scrapyard | Discovered new exit (range 15) 181 | -11/Scrapyard | Entered Materials 191 | -10/Materials | Discovered new exit (range 16) 209 | -10/Materials | Entered Mines 261 | -10/Mines | Escorted by a lone wolf Derelict 281 | -10/Mines | Learned location of Storage (-7) 300 | -10/Mines | Assembled infested the area 425 | -10/Mines | Core integrity fell below 50% 433 | -10/Mines | Core integrity fell below 20% 448 | -10/Mines | Destroyed by as-87657 with Assembled Rifle Last Messages --------------- 00300_ K-01 Serf collects debris. 00346_ System corrupted: Component data lost. 00401_ LI-KQ4(g): "Mission, incomplete...*fzzt*" 00401_ LI-KQ4(g) destroyed. 00407_ as-69618 suffers critical hit (Burn). 00407_ as-69618 destroyed. 00407_ Switching to secondary target: as-80225. 00414_ Slammed into as-96735. 00414_ Destabilizing: Core damaged (-7). 00415_ Acquired 17 matter. 00419_ Particle Gun destroyed. 00426_ Ion Engine destroyed. 00428_ Seismic Detector destroyed. 00430_ Lgt. Assault Rifle destroyed. 00430_ Aluminum Leg destroyed. 00432_ Com. Wheel destroyed. 00433_ System corrupted: Matter fused (-10). 00441_ G-47 Trooper destroyed. 00447_ G-34 Mercenary destroyed. Map ----- +----------------------------------------------------+ | ???????????????????? ??????????## #????????# | | ????????????????????? ??????????## ##???????## | | ?????????????????????? ?##??????## #???????## | | ???????????????????????? # ??????# #???????# | | ????????????????????????? ?????# ###?????# | | ??????????????????????????? ????# ##????#! | | ???????????????????########## ##### #????## | | ?????????????????# $ #?????# | | ?????????????????# ! #?????## | | ?????????????????????########## ##??????## | | ??????????????????????????????## #????????# | | ???????????????????????????????#### #?????#### | | ??????????????????????????????????##% #?????# | | ???????????????????????????????????# #?????# ## | | ??????????????????????????????????##a ##?????#??## | | ????????????????????????????#######a #??????????# | | ???????????????????????????## ## a ##??????????? | | ??????????????????????????## a##???????????? | | ??????????????????????????# ![##????????????? | | ??????????????????????????# a%#### #???????? | | ????????????????####??????## a != #???????? | | ???????????????## ##????# =a ##### #???????? | | ???????????????# #??## a%! ##??????????????? | | ???????????????# ### ##???????????????? | | ???????????????# t#????????????????? | | ???????????????# | @ #????????????????? | | ???????????????# %!%! #???????????????? | | ???????????????# %*t #??????????????? | | ???????????????# ## #??????????????? | | ??????????????# % %??## ????????????? | | ?????????????# ?????# ??????????? | | ?????????????# ??????# ###### #### ??????????? | | ?????????????????????? ##????? #??????????????? | | ????????????????????? #???????#??????????????? | | ????????????????????? ???????????????????????? | | ?????????????????????# #???????????????????????? | | ?????????????????????####????????????????????????? | | ?????????????????????????????????????????????????? | | ?????????????????????????????????????????????????? | | ?????????????????????????????????????????????????? | | ?????????????????????????????????????????????????? | | ?????????????????????????????????????????????????? | | ?????????????????????????????????????????????????? | | ?????????????????????????????????????????????????? | | ?????????????????????????????????????????????????? | | ?????????????????????????????????????????????????? | | ?????????????????????????????????????????????????? | | ?????????????????????????????????????????????????? | | ?????????????????????????????????????????????????? | | ?????????????????????????????????????????????????? | +----------------------------------------------------+ Best States ------------- Heat Dissipation 25 Energy Generation 10 Energy Capacity 250 Matter Stores 300 Matter Capacity 300 Sight Range 16 Terrain Scan Density 10 Evasion (%) 55 Item Schematics ----------------- None Robot Schematics ------------------ None Fabricated ------------ Nothing Repaired ---------- Nothing Alien Tech Used ----------------- None Achievements -------------- None Challenges ------------ None Game ------ Seed BeamNetworkedShearcannon Manual? 0 Play Time 00:11:52 Cumulative 60.2 hours Start 2025.07.06 @ 14:02:20 End 2025.07.07 @ 02:09:47 Sessions 4 Manual Loads 0 Difficulty Rogue Special Mode None Game No. 67 Rogue 67 Adventurer 0 Explorer 0 Win Type - Total 0 Types 0/0/0/0/0/0/0/0/0/0 Lore% 33 Gallery% 37 Achievement% 30 Wizard Run 0 Options --------- Layout 1 ASCII 0 Keyboard 0 Movement Mouse Keybinds 0 Fullscreen 2 Font 48/Smallcaps Map View 50x35 Zoom Use 0% Tactical HUD 1 Map Filters NONE Filters NONE Steam 0 RUN: c4bd08b2-2998-4fb0-9665-7e641ebe92f2